bitfinex/quotes_BTCUSD_20240617
["timestamp","ask_amount","ask_price","bid_price","bid_amount"]
[1718644809619,0.302688,66075.0,66064.0,0.4104]
[1718644809620,0.302713,66070.0,66064.0,0.4104]
[1718644809836,0.15136,66068.0,66064.0,0.4104]
[1718644810257,0.014,66065.0,66064.0,0.4104]
[1718644810456,0.15136,66068.0,66064.0,0.4104]
[1718644810835,0.302701,66072.0,66064.0,0.4104]
[1718644810836,0.165355,66070.0,66064.0,0.4104]
[1718644811052,0.014,66068.0,66064.0,0.4104]
[1718644811445,0.014,66065.0,66064.0,0.4104]
[1718644811649,0.6695,66076.0,66065.0,0.02]
[1718644811650,0.972182,66076.0,66065.0,0.02]
[1718644811860,0.014,66068.0,66065.0,0.02]
[1718644812268,0.014,66070.0,66067.0,0.151361]
[1718644812532,0.014,66070.0,66067.0,0.02]
[1718644813021,0.014,66070.0,66069.0,0.02]
[1718644813222,0.014,66070.0,66069.0,0.1977]
[1718644813567,0.014,66070.0,66069.0,1.174282]
[1718644814122,0.02805908,66078.0,66072.0,0.02]
[1718644814274,0.02805908,66078.0,66073.0,0.322694]
[1718644814480,0.12546174,66081.0,66073.0,0.02]
[1718644814710,0.12546174,66081.0,66075.0,0.02]
[1718644814978,0.12546174,66081.0,66073.0,0.02]
[1718644815292,0.014,66078.0,66073.0,0.02]
[1718644815494,0.014,66078.0,66075.0,0.151342]
[1718644815699,0.014,66078.0,66075.0,0.171342]
[1718644816040,0.014,66078.0,66075.0,0.02]
[1718644816245,0.014,66078.0,66077.0,0.454015]
[1718644816445,0.014,66078.0,66077.0,1.194792]
[1718644816833,0.014,66078.0,66077.0,0.892115]
[1718644817070,0.014,66078.0,66077.0,0.4381]
[1718644817439,0.014,66081.0,66080.0,0.02]
[1718644817616,0.014,66081.0,66077.0,0.4181]
[1718644817617,0.4699,66082.0,66081.0,0.02]
[1718644817813,0.4699,66082.0,66079.0,0.02]
[1718644818018,0.4699,66082.0,66077.0,0.569437]
[1718644818228,0.4699,66082.0,66077.0,0.4181]
[1718644818643,0.014,66081.0,66077.0,0.4181]
[1718644819047,0.014,66082.0,66077.0,0.4181]
[1718644819447,0.028,66082.0,66077.0,0.4181]
[1718644819658,0.151349,66073.0,66069.0,0.02]
[1718644819869,0.028,66082.0,66070.0,0.02]
[1718644820107,0.151332,66080.0,66072.0,0.02]
[1718644820755,0.028,66082.0,66073.0,0.02]
[1718644820966,0.014,66082.0,66080.0,0.2184]
[1718644821184,0.00085,66085.0,66080.0,0.2184]
[1718644821941,0.014,66082.0,66080.0,0.2184]
[1718644822372,0.028,66082.0,66080.0,0.2184]
[1718644822576,0.014,66082.0,66080.0,0.2184]
[1718644822780,0.00085,66085.0,66080.0,0.2184]
[1718644822781,0.152171,66085.0,66080.0,0.2184]
[1718644823004,0.166171,66085.0,66080.0,0.2184]
[1718644824221,0.152171,66085.0,66080.0,0.2184]
[1718644824599,0.00085,66085.0,66083.0,0.1794]
[1718644824802,0.00085,66085.0,66083.0,0.1994]
[1718644825003,0.00085,66085.0,66083.0,0.1794]
[1718644825465,0.02885,66085.0,66083.0,0.1794]
[1718644825835,0.01485,66085.0,66083.0,0.1794]
[1718644826098,0.00085,66085.0,66083.0,0.1794]
[1718644826244,0.01485,66085.0,66083.0,0.1794]
[1718644826446,0.02885,66085.0,66083.0,0.1794]
[1718644830798,0.02885,66085.0,66083.0,0.1994]
[1718644831533,0.02885,66085.0,66084.0,0.02319866]
[1718644831790,0.02885,66085.0,66084.0,0.17452066]
[1718644831987,0.02885,66085.0,66084.0,0.02319866]
[1718644832419,0.00085,66085.0,66084.0,0.00319866]
[1718644832830,0.01485,66085.0,66084.0,0.00319866]
[1718644833453,0.31749,66085.0,66084.0,0.00319866]
[1718644833667,1.22681888,66085.0,66084.0,0.00319866]
[1718644833887,0.15135,66072.0,66069.0,0.4125]
[1718644834092,0.15135,66072.0,66070.0,0.12561255]
[1718644834300,0.151349,66073.0,66070.0,0.00314553]
[1718644834504,0.1713,66079.0,66070.0,0.00314553]
[1718644834505,0.302683,66076.0,66070.0,0.00314553]
[1718644834706,0.151341,66076.0,66070.0,0.00314553]
[1718644834917,0.151339,66077.0,66070.0,0.00314553]
[1718644835136,0.001,66072.0,66070.0,0.00314553]
[1718644835343,0.002,66072.0,66071.0,0.171352]
[1718644835549,0.001,66072.0,66071.0,0.02]
[1718644835758,0.151337,66078.0,66071.0,0.00316366]
[1718644835961,0.151342,66076.0,66071.0,0.00316366]
[1718644836167,0.151343,66075.0,66071.0,0.00316366]
[1718644837417,0.15272888,66082.0,66071.0,0.00316366]
[1718644837418,0.1713,66076.0,66071.0,0.00316366]
[1718644837680,0.75675,66072.0,66071.0,0.00316366]
[1718644838454,0.15136,66068.0,66065.0,0.3943]
[1718644838618,0.151352,66071.0,66066.0,0.00316662]
[1718644840736,0.151352,66071.0,66066.0,0.00416662]
[1718644841320,0.151354,66070.0,66066.0,0.00616662]
[1718644841463,0.151352,66071.0,66066.0,0.00616662]
[1718644841664,0.151352,66071.0,66066.0,0.02616662]
[1718644842001,0.151352,66071.0,66066.0,0.00616662]
[1718644842327,0.454083,66067.0,66066.0,0.00616662]
[1718644842754,0.151353,66071.0,66066.0,0.003]
[1718644842961,0.151354,66070.0,66066.0,0.001]
[1718644843094,0.302701,66072.0,66067.0,0.00320102]
[1718644843095,0.151357,66069.0,66067.0,0.00320102]
[1718644843670,0.302707,66071.0,66067.0,0.00320102]
[1718644843671,0.756795,66068.0,66067.0,0.00320102]
[1718644843790,0.45409,66066.0,66065.0,0.3943]
[1718644844207,0.45409,66066.0,66047.0,0.452811]
[1718644844208,0.151377,66060.0,66059.0,0.4121]
[1718644844441,0.454116,66063.0,66059.0,0.4153005]
[1718644844656,0.151365,66066.0,66059.0,0.4153005]
[1718644845107,0.151365,66066.0,66065.0,0.006]
[1718644845332,0.454092,66066.0,66065.0,0.003]
[1718644845757,0.151365,66066.0,66060.0,0.02]
[1718644845993,0.151365,66066.0,66065.0,0.003207]
[1718644846177,0.152365,66066.0,66060.0,0.02]
[1718644846390,0.152365,66066.0,66065.0,0.406207]
[1718644846599,0.152365,66066.0,66065.0,0.403]
[1718644846802,0.152365,66066.0,66065.0,0.406207]
[1718644847416,0.153365,66066.0,66065.0,0.406207]
[1718644848267,0.151365,66066.0,66065.0,0.406207]
[1718644848473,0.757819,66066.0,66065.0,0.003207]
[1718644848707,0.455092,66066.0,66065.0,0.003]
[1718644848921,0.454092,66066.0,66065.0,0.003]
[1718644849122,0.454092,66066.0,66065.0,0.006207]
[1718644849123,0.756819,66066.0,66065.0,0.006207]
[1718644849325,0.756819,66066.0,66065.0,0.006]
[1718644849471,0.756819,66066.0,66065.0,0.00897793]
[1718644849888,0.454092,66066.0,66065.0,0.00897793]
[1718644850272,0.151365,66066.0,66065.0,0.00897793]
[1718644853928,0.151361,66067.0,66065.0,0.00897793]
[1718644854791,0.151361,66067.0,66065.0,0.02597793]
[1718644855002,0.151361,66067.0,66065.0,0.00597793]
[1718644855434,0.151361,66067.0,66065.0,0.00897793]
[1718644855845,0.151359,66068.0,66065.0,0.00897793]
[1718644856306,0.151362,66067.0,66065.0,0.00897793]
[1718644856658,0.151362,66067.0,66065.0,0.00597793]
[1718644857456,0.151362,66067.0,66065.0,0.00897793]
[1718644857669,0.151362,66067.0,66065.0,0.00597793]
[1718644857987,0.151362,66067.0,66065.0,0.00897793]
[1718644858572,0.151362,66067.0,66065.0,0.00597793]
[1718644858775,0.151362,66067.0,66065.0,0.00897793]
[1718644859763,0.0799,66066.0,66065.0,0.00897793]
[1718644860573,0.49539321,66074.0,66070.0,0.151353]
[1718644860773,0.0799,66070.0,66065.0,0.02597793]
[1718644860960,0.0799,66070.0,66066.0,0.02]
[1718644861152,0.0799,66070.0,66066.0,0.02322001]
[1718644861556,0.29039234,66078.0,66072.0,0.02]
[1718644862254,0.0799,66077.0,66073.0,0.00322001]
[1718644862657,0.0799,66077.0,66070.0,0.151354]
[1718644863100,0.0799,66077.0,66071.0,0.00322001]
[1718644863319,0.0799,66074.0,66071.0,0.00322001]
[1718644863534,0.75675,66072.0,66065.0,0.2326]
[1718644863752,0.1877,66073.0,66065.0,0.2496]
[1718644863952,0.151357,66069.0,66066.0,0.00322001]
[1718644864365,0.151355,66070.0,66066.0,0.00322001]
[1718644864575,0.1877,66073.0,66067.0,0.12561421]
[1718644864783,0.04043548,66078.0,66072.0,0.02]
[1718644864987,0.04043548,66078.0,66075.0,0.1832]
[1718644865194,0.1,66082.0,66081.0,0.401329]
[1718644865406,0.4699,66084.0,66081.0,0.23]
[1718644865604,0.4699,66084.0,66081.0,0.23321377]
[1718644866835,0.014,66082.0,66081.0,0.23321377]
[1718644867331,0.4699,66084.0,66081.0,0.23321377]
[1718644867611,0.4839,66084.0,66081.0,0.23321377]
[1718644867809,0.4699,66084.0,66081.0,0.25321377]
[1718644868014,0.4699,66084.0,66082.0,0.02]
[1718644868227,0.4699,66084.0,66082.0,0.0231813]
[1718644868809,0.4839,66084.0,66082.0,0.0231813]
[1718644869184,0.014,66084.0,66082.0,0.0231813]
[1718644869385,0.014,66084.0,66083.0,0.756622]
[1718644869791,0.014,66084.0,66083.0,0.776622]
[1718644870014,0.014,66084.0,66083.0,1.48985021]
[1718644870229,0.00085,66085.0,66084.0,1.198412]
[1718644870397,0.00085,66085.0,66084.0,1.501057]
[1718644870627,0.00085,66085.0,66084.0,1.198412]
[1718644870824,0.00085,66085.0,66084.0,1.20159121]
[1718644871026,0.00085,66085.0,66084.0,0.42497921]
[1718644871253,0.00085,66085.0,66084.0,0.23827921]
[1718644871459,0.15217,66085.0,66084.0,0.23827921]
[1718644871665,0.00085,66085.0,66084.0,0.23827921]
[1718644871814,0.29337,66091.0,66084.0,0.00317921]
[1718644872024,0.15272888,66091.0,66084.0,0.00317921]
[1718644872265,0.151309,66090.0,66081.0,0.171328]
[1718644872421,0.151309,66090.0,66085.0,0.00313574]
[1718644872617,0.151311,66089.0,66084.0,0.001]
[1718644872851,0.151311,66089.0,66085.0,0.00313578]
[1718644873108,0.151311,66089.0,66081.0,0.151328]
[1718644873309,0.7566,66085.0,66084.0,0.001]
[1718644873476,1.45722888,66085.0,66084.0,0.001]
[1718644873680,0.151356,66070.0,66064.0,0.405]
[1718644873885,0.151363,66066.0,66065.0,0.00302774]
[1718644874090,0.1785,66076.0,66064.0,0.405]
[1718644874296,0.302696,66073.0,66064.0,0.405]
[1718644874508,0.302696,66073.0,66065.0,0.00303854]
[1718644874775,0.151352,66071.0,66065.0,0.00303854]
[1718644875548,0.15272888,66075.0,66068.0,0.02]
[1718644875748,0.45541788,66075.0,66065.0,0.00303854]
[1718644875949,0.15135,66072.0,66065.0,0.004]
[1718644876154,0.15135,66072.0,66066.0,0.00303854]
[1718644876728,0.15135,66072.0,66068.0,0.001]
[1718644877157,0.011,66075.0,66072.0,0.555047]
[1718644877362,0.011,66075.0,66072.0,0.4037]
[1718644877573,0.011,66075.0,66073.0,0.15440124]
[1718644878004,0.011,66075.0,66074.0,0.151345]
[1718644878222,0.4699,66079.0,66074.0,0.151345]
[1718644878417,0.4699,66079.0,66075.0,0.151343]
[1718644878617,0.4699,66079.0,66075.0,0.00305524]
[1718644878878,0.15132,66085.0,66075.0,0.00305524]
[1718644879020,0.15132,66085.0,66075.0,0.02]
[1718644879021,0.151323,66084.0,66075.0,0.02]
[1718644879219,0.151325,66083.0,66076.0,0.00305524]
[1718644879395,0.151328,66082.0,66076.0,0.00305524]
[1718644879601,0.302649,66084.0,66072.0,0.4037]
[1718644879826,0.302649,66084.0,66077.0,0.00305524]
[1718644880021,0.151327,66082.0,66073.0,0.454038]
[1718644880231,0.151327,66082.0,66078.0,0.00305524]
[1718644880464,0.151323,66084.0,66075.0,0.151341]
[1718644880631,0.014,66082.0,66079.0,0.00305524]
[1718644880856,0.014,66082.0,66076.0,0.001]
[1718644881102,0.33512888,66081.0,66072.0,0.4037]
[1718644881319,0.33512888,66081.0,66065.0,0.02]
[1718644881320,0.151363,66066.0,66065.0,0.4069]
[1718644881523,0.151363,66066.0,66065.0,0.40993999]
[1718644881524,0.45409,66066.0,66065.0,0.40993999]
[1718644881949,0.45409,66066.0,66065.0,0.2209]
[1718644882148,0.15136,66068.0,66065.0,0.2209]
[1718644882358,0.15136,66068.0,66065.0,0.22393999]
[1718644883440,0.151363,66066.0,66065.0,0.22793999]
[1718644883644,0.001,66068.0,66065.0,0.22793999]
[1718644883869,0.15272888,66067.0,66065.0,0.00703999]
[1718644884094,1.259344,66066.0,66065.0,0.00703999]
[1718644884306,1.92864988,66066.0,66065.0,0.004]
[1718644884515,1.92864988,66066.0,66065.0,0.011]
[1718644884516,1.92964988,66066.0,66065.0,0.011]
[1718644884727,1.92864988,66066.0,66065.0,0.004]
[1718644884939,1.62592288,66066.0,66065.0,0.004]
[1718644885152,1.62592288,66066.0,66065.0,0.008]
[1718644885644,1.62592288,66066.0,66065.0,0.004]
[1718644885877,1.62592288,66066.0,66065.0,0.008]
[1718644886087,1.62692288,66066.0,66065.0,0.004]
[1718644886556,0.151385,66057.0,66050.0,0.020935]
[1718644886772,0.151385,66057.0,66050.0,0.000935]
[1718644886981,0.151385,66057.0,66051.0,0.00311886]
[1718644887642,0.151389,66055.0,66051.0,0.00311886]
[1718644888098,0.151389,66055.0,66050.0,0.000935]
[1718644888099,0.151389,66055.0,66050.0,0.020935]
[1718644888312,0.151389,66055.0,66052.0,0.00311946]
[1718644888516,0.151387,66056.0,66053.0,0.00311946]
[1718644888720,0.014,66057.0,66053.0,0.00311946]
[1718644888930,0.028,66057.0,66053.0,0.00311946]
[1718644889179,0.151391,66054.0,66053.0,0.00311946]
[1718644889576,0.151391,66054.0,66052.0,0.002]
[1718644889806,0.151391,66054.0,66053.0,0.00312075]
[1718644890409,0.151379,66059.0,66053.0,0.00312075]
[1718644890635,0.151379,66059.0,66052.0,0.02]
[1718644890840,0.151379,66059.0,66054.0,0.02312075]
[1718644890841,0.151384,66057.0,66054.0,0.02312075]
[1718644891048,0.151384,66057.0,66053.0,0.02]
[1718644891453,0.151388,66055.0,66054.0,0.00312075]
[1718644891862,0.151388,66055.0,66050.0,0.000935]
[1718644892059,0.151388,66055.0,66054.0,0.001]
[1718644892470,0.454194,66051.0,66050.0,0.000935]
[1718644892669,0.151394,66053.0,66050.0,0.000935]
[1718644892936,0.305781,66055.0,66050.0,0.000935]
[1718644892937,0.457171,66055.0,66050.0,0.000935]
[1718644893144,0.457171,66055.0,66051.0,0.00312075]
[1718644893569,0.457171,66055.0,66050.0,0.000935]
[1718644893774,0.15439,66055.0,66052.0,0.00312075]
[1718644893999,0.15139,66055.0,66051.0,0.02]
[1718644894213,0.15139,66055.0,66053.0,0.00312075]
[1718644894437,0.15139,66055.0,66052.0,0.00312598]
[1718644894654,0.15139,66055.0,66050.0,0.004935]
[1718644894868,0.15139,66055.0,66053.0,0.00312598]
[1718644895073,0.15139,66055.0,66050.0,0.004935]
[1718644895284,0.15139,66055.0,66054.0,0.00312598]
[1718644895498,0.15439,66055.0,66051.0,0.003]
[1718644895901,0.15439,66055.0,66052.0,0.00312598]
[1718644896304,0.15439,66055.0,66050.0,0.000935]
[1718644896533,0.15433244,66055.0,66051.0,0.00312598]
[1718644896688,0.151391,66054.0,66050.0,0.003935]
[1718644896847,0.151391,66054.0,66051.0,0.00312598]
[1718644897051,0.151391,66054.0,66050.0,0.000935]
[1718644897299,0.151398,66051.0,66050.0,0.000935]
[1718644897467,0.151395,66053.0,66050.0,0.000935]
[1718644897674,0.151393,66053.0,66050.0,0.000935]
[1718644897881,0.151393,66053.0,66050.0,0.001935]
[1718644898106,0.302768,66057.0,66050.0,0.001935]
[1718644898337,0.151395,66053.0,66050.0,0.000935]
[1718644898703,0.75699,66051.0,66050.0,0.000935]
[1718644899175,0.75699,66051.0,66050.0,0.001935]
[1718644899395,1.059786,66051.0,66050.0,0.001935]
[1718644900225,1.059786,66051.0,66050.0,0.004935]
[1718644900484,1.21251488,66051.0,66050.0,0.003935]
[1718644900707,1.64916088,66051.0,66050.0,0.003935]
[1718644900927,1.64916088,66051.0,66050.0,0.004935]
[1718644900928,1.83526088,66051.0,66050.0,0.004935]
[1718644901163,1.83526088,66051.0,66050.0,0.003935]
[1718644901376,1.99646088,66051.0,66050.0,0.003935]
[1718644901593,2.01046088,66051.0,66050.0,0.001935]
[1718644901805,1.70766488,66051.0,66050.0,0.001935]
[1718644902008,1.70766488,66051.0,66050.0,0.000935]
[1718644902209,1.72166488,66051.0,66050.0,0.001935]
[1718644902412,1.70766488,66051.0,66050.0,0.001935]
[1718644902809,1.72166488,66051.0,66050.0,0.001935]
[1718644903238,1.70766488,66051.0,66050.0,0.001935]
[1718644903655,1.72766488,66051.0,66050.0,0.000935]
[1718644903862,1.72166488,66051.0,66050.0,0.001935]
[1718644904068,1.74166488,66051.0,66050.0,0.000935]
[1718644904274,1.72166488,66051.0,66050.0,0.000935]
[1718644904486,1.73566488,66051.0,66050.0,0.001935]
[1718644904712,2.21117344,66051.0,66050.0,0.001935]
[1718644904927,2.31117344,66051.0,66050.0,0.001935]
[1718644905162,2.74396944,66051.0,66050.0,0.001935]
[1718644905648,2.46610331,66051.0,66050.0,0.001935]
[1718644906929,2.76889931,66051.0,66050.0,0.001935]
[1718644907359,2.46610331,66051.0,66050.0,0.001935]
[1718644908663,2.31339075,66051.0,66050.0,0.001935]
[1718644909482,2.61618675,66051.0,66050.0,0.001935]
[1718644909890,2.31339075,66051.0,66050.0,0.001935]
[1718644910409,2.61618675,66051.0,66050.0,0.001935]
[1718644910716,1.473598,66043.0,66042.0,0.009383]
[1718644910849,2.31452688,66043.0,66042.0,0.009383]
[1718644912129,2.32852688,66043.0,66042.0,0.010383]
[1718644912560,2.32852688,66043.0,66034.0,0.23399651]
[1718644912561,0.11085,66035.0,66034.0,0.23399651]
[1718644912772,0.75831736,66035.0,66034.0,0.23399651]
[1718644912900,0.75831736,66035.0,66034.0,0.23724582]
[1718644912901,1.76692436,66035.0,66034.0,0.23724582]
[1718644913103,1.78992436,66035.0,66034.0,0.23399651]
[1718644914308,1.80392436,66035.0,66034.0,0.23399651]
[1718644914444,1.81792436,66035.0,66034.0,0.23399651]
[1718644914647,2.12079336,66035.0,66034.0,0.23399651]
[1718644914857,2.25950592,66035.0,66034.0,0.23399651]
[1718644915219,2.27350592,66035.0,66034.0,0.23399651]
[1718644915433,2.27350592,66035.0,66034.0,0.21099223]
[1718644915434,2.32350592,66035.0,66034.0,0.21099223]
[1718644915633,2.32350592,66035.0,66034.0,0.19399223]
[1718644915634,2.65780592,66035.0,66034.0,0.19399223]
[1718644915912,2.69341924,66035.0,66034.0,0.19399223]
[1718644916171,2.65780592,66035.0,66034.0,0.19399223]
[1718644916374,1.473904,66028.0,66027.0,0.009394]
[1718644916615,2.13063288,66028.0,66027.0,0.009394]
[1718644916825,2.31493288,66028.0,66027.0,0.009394]
[1718644917664,2.66783388,66028.0,66027.0,0.009394]
[1718644918126,2.8287651,66028.0,66027.0,0.009394]
[1718644918310,1.876855,66026.0,66014.0,0.009394]
[1718644918585,0.2,66015.0,66014.0,0.009394]
[1718644918842,1.574237,66012.0,66011.0,0.2518399]
[1718644919060,2.22974088,66012.0,66011.0,0.2518399]
[1718644919282,2.22974088,66012.0,65994.0,0.07593072]
[1718644919283,1.201294,66010.0,65994.0,0.07593072]
[1718644919503,1.69682288,66010.0,65994.0,0.07593072]
[1718644919717,2.04277146,66010.0,65994.0,0.07593072]
[1718644920519,2.04277146,66010.0,65993.0,0.2193]
[1718644920771,2.09018513,66010.0,65993.0,0.2193]
[1718644920997,1.78720113,66010.0,65993.0,0.2193]
[1718644921211,1.95391369,66010.0,65993.0,0.2193]
[1718644921442,1.93991369,66010.0,65993.0,0.2193]
[1718644921665,1.95391369,66010.0,65993.0,0.2193]
[1718644921892,1.94791369,66010.0,65993.0,0.2193]
[1718644922102,1.91991369,66010.0,65993.0,0.2193]
[1718644922314,1.93391369,66010.0,65993.0,0.2193]
[1718644922736,2.25689769,66010.0,65993.0,0.2193]
[1718644923595,1.94791369,66010.0,65993.0,0.2193]
[1718644923808,1.86991369,66010.0,65994.0,0.07593072]
[1718644924258,0.82605488,66010.0,66008.0,0.4311]
[1718644924475,0.50907088,66010.0,66008.0,0.4311]
[1718644924713,1.0417635,66015.0,66008.0,0.4311]
[1718644924714,0.09085,66014.0,66008.0,0.4311]
[1718644924926,0.014,66010.0,66009.0,0.08531372]
[1718644925133,0.014,66010.0,66009.0,0.009383]
[1718644925134,0.468476,66010.0,66009.0,0.009383]
[1718644925355,1.13798888,66010.0,66009.0,0.009383]
[1718644925560,1.42697288,66010.0,66009.0,0.009383]
[1718644926398,1.69370544,66010.0,66009.0,0.009383]
[1718644926612,2.09668944,66010.0,66009.0,0.009383]
[1718644927485,2.08268944,66010.0,66009.0,0.009383]
[1718644927682,1.33800888,66010.0,66009.0,0.009383]
[1718644927906,1.32400888,66010.0,66009.0,0.009383]
[1718644928107,1.92997688,66010.0,66009.0,0.009383]
[1718644928382,2.00174239,66010.0,66009.0,0.009383]
[1718644928556,2.15445495,66010.0,66009.0,0.009383]
[1718644928991,2.14045495,66010.0,66009.0,0.009383]
[1718644929343,2.09668944,66010.0,66009.0,0.009383]
[1718644929545,2.11668944,66010.0,66009.0,0.009383]
[1718644929960,2.10268944,66010.0,66009.0,0.009383]
[1718644930115,1.67167095,66010.0,66009.0,0.009383]
[1718644930316,1.87147095,66010.0,66009.0,0.009383]
[1718644930516,1.85747095,66010.0,66009.0,0.009383]
[1718644930924,2.16045495,66010.0,66009.0,0.009383]
[1718644931138,1.84347095,66010.0,66009.0,0.009383]
[1718644931411,1.83747095,66010.0,66009.0,0.009383]
[1718644931613,1.39577439,66010.0,66009.0,0.009383]
[1718644932042,0.76680639,66010.0,66009.0,0.436183]
[1718644932265,0.55754888,66010.0,66009.0,0.436183]
[1718644932459,0.35774888,66010.0,66009.0,0.43924733]
[1718644932639,0.35774888,66010.0,66009.0,0.436183]
[1718644932863,0.35774888,66010.0,66009.0,0.43948146]
[1718644933066,0.79822488,66010.0,66009.0,0.43948146]
[1718644933247,1.11520888,66010.0,66009.0,0.43948146]
[1718644933504,0.16672888,66010.0,66009.0,0.43948146]
[1718644933716,0.02332409,66014.0,66013.0,0.02]
[1718644933927,0.4699,66026.0,66011.0,0.02]
[1718644934136,0.151467,66021.0,66019.0,0.07593072]
[1718644934342,0.151464,66023.0,66013.0,0.151484]
[1718644934519,0.151465,66022.0,66013.0,0.151484]
[1718644934755,0.15272888,66023.0,66014.0,0.00324107]
[1718644935174,0.151485,66014.0,66009.0,0.436183]
[1718644935392,0.15149,66011.0,66009.0,0.436183]
[1718644936067,0.454476,66010.0,66009.0,0.436183]
[1718644936481,0.75746,66010.0,66009.0,0.436183]
[1718644936706,0.151486,66013.0,66009.0,0.436183]
[1718644936907,0.302959,66016.0,66009.0,0.436183]
[1718644937380,0.1998,66021.0,66009.0,0.436183]
[1718644937546,0.151486,66013.0,66009.0,0.436183]
[1718644937958,0.165486,66013.0,66009.0,0.436183]
[1718644938389,0.165486,66013.0,66009.0,0.437183]
[1718644938390,0.014,66013.0,66009.0,0.437183]
[1718644938611,0.014,66013.0,66010.0,0.00325081]
[1718644938824,0.316973,66013.0,66010.0,0.00325081]
[1718644939001,0.014,66013.0,66012.0,0.22741772]
[1718644939257,0.014,66013.0,66012.0,0.53039272]
[1718644939468,0.012,66016.0,66014.0,0.151482]
[1718644939671,0.012,66016.0,66012.0,0.07918052]
[1718644939883,0.151484,66014.0,66009.0,0.436183]
[1718644940098,0.012,66013.0,66009.0,0.437183]
[1718644940300,0.012,66013.0,66010.0,0.302983]
[1718644940506,0.151467,66021.0,66012.0,0.454462]
[1718644940721,0.151485,66013.0,66009.0,0.436183]
[1718644940920,0.165485,66013.0,66012.0,0.001]
[1718644941135,0.012,66016.0,66012.0,0.001]
[1718644941339,0.012,66016.0,66013.0,0.151484]
[1718644941546,0.012,66016.0,66012.0,0.001]
[1718644941758,0.151474,66018.0,66010.0,0.151491]
[1718644941965,0.151474,66018.0,66009.0,0.436183]
[1718644941966,0.151492,66010.0,66009.0,0.436183]
[1718644942170,0.15272888,66018.0,66009.0,0.436183]
[1718644942171,0.15149,66011.0,66009.0,0.436183]
[1718644942599,0.014,66013.0,66009.0,0.436183]
[1718644943276,0.014,66013.0,66012.0,0.778437]
[1718644943489,0.09102,66024.0,66009.0,0.436183]
[1718644943490,0.09102,66024.0,66018.0,0.151473]
[1718644943630,0.09102,66024.0,66016.0,0.302955]
[1718644943631,0.09102,66024.0,66019.0,0.228]
[1718644943881,0.1,66025.0,66021.0,0.151465]
[1718644944095,0.251458,66025.0,66020.0,0.1871]
[1718644944316,0.151462,66023.0,66020.0,0.1871]
[1718644944524,0.1,66025.0,66020.0,0.1871]
[1718644944857,0.151466,66021.0,66020.0,0.1871]
[1718644944978,0.454399,66021.0,66020.0,0.1871]
[1718644945607,0.151466,66021.0,66020.0,0.1871]
[1718644945805,0.012,66024.0,66020.0,0.1871]
[1718644946036,0.177461,66024.0,66020.0,0.1903449]
[1718644946212,0.165461,66024.0,66020.0,0.1903449]
[1718644946418,0.151463,66023.0,66020.0,0.1903449]
[1718644946620,0.014,66021.0,66020.0,0.1913449]
[1718644947023,0.151461,66024.0,66020.0,0.1903449]
[1718644947225,0.165461,66024.0,66020.0,0.1903449]
[1718644947453,0.177461,66024.0,66020.0,0.1913449]
[1718644947702,0.151464,66023.0,66020.0,0.1913449]
[1718644948316,0.012,66024.0,66020.0,0.1913449]
[1718644948520,0.012,66024.0,66021.0,0.151466]
[1718644948745,0.012,66024.0,66020.0,0.1913449]
[1718644948952,0.012,66024.0,66022.0,0.00322548]
[1718644949156,0.012,66024.0,66020.0,0.1881]
[1718644949367,0.16346,66024.0,66023.0,0.00322548]
[1718644949575,0.16346,66024.0,66020.0,0.1881]
[1718644949576,0.114,66024.0,66020.0,0.1871]
[1718644949786,0.26546,66024.0,66023.0,0.00322548]
[1718644950019,0.41692,66024.0,66020.0,0.1881]
[1718644950227,0.151463,66023.0,66020.0,0.1871]
[1718644950412,0.1,66024.0,66021.0,0.00322156]
[1718644950637,0.17746,66024.0,66023.0,0.001]
[1718644950821,0.26346,66024.0,66023.0,0.001]
[1718644950961,0.151464,66023.0,66020.0,0.1871]
[1718644951155,0.151464,66023.0,66021.0,0.00322156]
[1718644951384,0.302929,66022.0,66021.0,0.00322156]
[1718644951593,0.454393,66022.0,66021.0,0.00322156]
[1718644952017,0.69814188,66022.0,66021.0,0.00322156]
[1718644952248,1.00107088,66022.0,66021.0,0.00322156]
[1718644952447,0.848352,66021.0,66020.0,0.001]
[1718644952746,0.151478,66016.0,66015.0,0.1928]
[1718644952946,0.25158959,66016.0,66015.0,0.00322785]
[1718644953150,0.928435,66014.0,66013.0,0.000935]
[1718644953349,0.665496,66010.0,66009.0,0.009383]
[1718644953605,0.454551,65999.0,65986.0,0.4207]
[1718644953810,1.492639,65999.0,65986.0,0.4207]
[1718644953977,1.75756903,65999.0,65986.0,0.4207]
[1718644954194,1.80706391,65999.0,65986.0,0.4207]
[1718644954435,0.87370731,65999.0,65986.0,0.4207]
[1718644954822,1.17674131,65999.0,65986.0,0.4207]
[1718644955026,1.47977531,65999.0,65986.0,0.4207]
[1718644955230,0.341,65999.0,65993.0,0.02]
[1718644955537,0.341,65999.0,65989.0,0.00606144]
[1718644955538,0.5151689,66013.0,66000.0,0.151514]
[1718644955762,0.02372129,66016.0,66005.0,0.02]
[1718644956005,0.02372129,66016.0,66006.0,0.00605939]
[1718644956250,0.151496,66008.0,66007.0,0.1939]
[1718644956494,0.22352129,66016.0,66007.0,0.1939]
[1718644956737,0.09102,66018.0,66008.0,4.6e-05]
[1718644956962,0.302963,66015.0,66008.0,4.6e-05]
[1718644957181,0.15272888,66017.0,66008.0,4.6e-05]
[1718644957182,0.151494,66009.0,66008.0,4.6e-05]
[1718644957389,0.014,66010.0,66008.0,4.6e-05]
[1718644957601,0.028,66010.0,66008.0,4.6e-05]
[1718644957825,0.028,66010.0,66009.0,0.00279164]
[1718644957826,0.014,66010.0,66009.0,0.00279164]